bitfinex-derivatives/quotes_SOLF0:USTF0_20240824
["timestamp","ask_amount","ask_price","bid_price","bid_amount"]
[1724497417970,0.04433413,158.22,158.2,3.159]
[1724497418272,0.04433413,158.22,158.19,0.04093366]
[1724497418667,0.04433413,158.22,158.19,3.20013366]
[1724497426575,0.04433413,158.22,158.2,7.76]
[1724497427884,0.04433413,158.22,158.2,10.919]
[1724497428775,0.04433413,158.22,158.19,3.20013366]
[1724497429081,0.04433413,158.22,158.21,7.76]
[1724497432379,3.20303413,158.22,158.19,7.80093366]
[1724497432573,0.04433413,158.22,158.19,7.80093366]
[1724497433281,0.04433413,158.22,158.19,10.96023366]
[1724497433874,3.1591,158.2,158.19,0.04093366]
[1724497434387,0.04433413,158.22,158.19,0.04093366]
[1724497436273,3.20313413,158.22,158.19,0.04093366]
[1724497436779,0.04433413,158.22,158.2,7.76]
[1724497437579,0.04433413,158.22,158.2,10.9191]
[1724497438281,0.04433413,158.22,158.2,7.76]
[1724497438783,0.04433413,158.22,158.21,10.9189]
[1724497439283,0.04433413,158.22,158.21,7.76]
[1724497443285,0.04433413,158.22,158.21,10.9189]
[1724497443890,0.04433413,158.22,158.21,7.76]
[1724497448596,0.04433413,158.22,158.21,10.9189]
[1724497460594,0.04433413,158.22,158.19,0.04093366]
[1724497461000,3.20313413,158.22,158.19,3.20013366]
[1724497462397,0.04433413,158.22,158.19,0.04093366]
[1724497462998,3.159,158.21,158.19,0.04093366]
[1724497469628,3.20313413,158.22,158.2,7.76]
[1724497469811,0.04433413,158.22,158.21,7.76]
[1724497470006,3.20303413,158.22,158.21,7.76]
[1724497470609,3.20303413,158.22,158.2,7.76]
[1724497472513,3.20303413,158.22,158.21,3.01929154]
[1724497473007,3.20303413,158.22,158.2,7.76]
[1724497473415,3.20303413,158.22,158.21,3.01940629]
[1724497473609,3.20303413,158.22,158.2,7.76]
[1724497473816,3.1589,158.21,158.19,0.04093366]
[1724497474010,3.1589,158.21,158.2,3.01945407]
[1724497479009,3.20313413,158.22,158.2,3.01945407]
[1724497479215,3.20313413,158.22,158.21,3.01945407]
[1724497480721,3.20313413,158.22,158.19,0.04093366]
[1724497480722,3.1591,158.2,158.19,0.04093366]
[1724497480922,7.76,158.21,158.15,7.76]
[1724497481951,7.76,158.2,158.16,0.04058052]
[1724497482715,3.1593,158.19,158.16,0.04058052]
[1724497483525,3.1595,158.18,158.16,0.04058052]
[1724497486730,0.04172321,158.19,158.16,0.04058052]
[1724497487229,3.1595,158.18,158.16,0.04058052]
[1724497489537,3.1597,158.17,158.16,0.04058052]
[1724497492036,7.76,158.17,158.01,25.28]
[1724497492236,7.76,158.15,158.08,7.76]
[1724497492430,7.76,158.15,158.09,1.26446448]
[1724497492635,3.1611,158.1,158.09,1.26446448]
[1724497493033,3.1611,158.1,158.08,7.80193036]
[1724497498449,3.20514111,158.11,158.08,10.96343036]
[1724497498656,0.04424111,158.11,158.1,7.76]
[1724497499355,0.04424111,158.11,158.1,10.9211]
[1724497504461,1.2586,158.19,158.14,7.76]
[1724497505456,0.04531624,158.18,158.15,0.04698988]
[1724497506047,3.1597,158.17,158.16,7.76]
[1724497506257,0.04531624,158.18,158.16,7.76]
[1724497506453,0.04531624,158.18,158.17,7.76]
[1724497506660,3.8454,158.27,158.17,7.76]
[1724497506969,11.6054,158.27,158.21,7.76]
[1724497507157,3.1587,158.22,158.21,7.76]
[1724497508059,3.1589,158.21,158.2,0.04402239]
[1724497509360,3.1588,158.22,158.2,0.04402239]
[1724497512765,0.04223801,158.23,158.21,7.76]
[1724497513264,0.04223801,158.23,158.22,3.1587]
[1724497517969,3.1581,158.25,158.22,3.1587]
[1724497518374,3.1581,158.25,158.22,10.9187]
[1724497518570,3.1581,158.25,158.22,7.76]
[1724497518974,3.20119178,158.25,158.22,7.76]
[1724497519168,3.20119178,158.25,158.21,3.1588]
[1724497519368,3.1584,158.24,158.21,3.1588]
[1724497520768,0.04309178,158.25,158.2,7.80402239]
[1724497522278,3.1583,158.24,158.21,3.1587]
[1724497525479,3.1586,158.23,158.2,3.20302239]
[1724497525680,0.04309178,158.25,158.2,3.20302239]
[1724497526181,3.1586,158.23,158.21,3.1589]
[1724497526485,0.04309178,158.25,158.21,3.1589]
[1724497526683,3.1585,158.24,158.21,3.1589]
[1724497526884,0.04309178,158.25,158.2,3.20302239]
[1724497527281,3.1585,158.23,158.2,3.20302239]
[1724497527782,7.76,158.22,158.2,0.04402239]
[1724497527985,7.76,158.21,158.2,0.04402239]
[1724497528175,7.76,158.21,158.13,7.76]
[1724497528376,3.7912,158.27,158.14,3.1602]
[1724497528575,7.76,158.19,158.14,3.1602]
[1724497528781,3.1596,158.18,158.14,3.1602]
[1724497529181,3.20520389,158.18,158.14,3.20340288]
[1724497529381,0.04560389,158.18,158.15,3.1601]
[1724497529975,0.04560389,158.18,158.14,3.20340288]
[1724497530177,0.04560389,158.18,158.14,0.04320288]
[1724497530398,7.80560389,158.18,158.14,0.04320288]
[1724497530683,0.04560389,158.18,158.16,7.76]
[1724497531182,0.04560389,158.18,158.16,10.9198]
[1724497531777,0.04560389,158.18,158.17,10.9197]
[1724497534678,3.7912,158.27,158.2,3.1591]
[1724497534679,2.5691,158.27,158.2,3.1591]
[1724497534879,10.3291,158.27,158.21,7.76]
[1724497535681,0.04675024,158.26,158.22,0.04598845]
[1724497536776,3.1585,158.24,158.22,0.04598845]
[1724497537390,3.1585,158.23,158.22,0.04598845]
[1724497538195,10.9185,158.23,158.22,0.04598845]
[1724497538988,7.76,158.23,158.02,226.0]
[1724497539194,3.1601,158.15,158.06,1.2699]
[1724497539492,7.76,158.18,158.12,7.76]
[1724497539883,3.12083468,158.2,158.07,1.2943]
[1724497540081,3.1603,158.14,158.13,0.04393327]
[1724497547693,0.0476902,158.17,158.13,0.04393327]
[1724497547886,0.0476902,158.17,158.13,19.48393327]
[1724497548289,3.16,158.16,158.13,19.48393327]
[1724497548690,0.0476902,158.17,158.15,19.44]
[1724497549190,0.0476902,158.17,158.15,22.5999]
[1724497549589,0.0476902,158.17,158.15,19.44]
[1724497552090,0.0476902,158.17,158.15,22.6001]
[1724497552691,3.2073902,158.17,158.15,19.44]
[1724497553293,0.0476902,158.17,158.15,19.44]
[1724497553791,3.2073902,158.17,158.15,19.44]
[1724497553987,0.0476902,158.17,158.13,19.48393327]
[1724497554392,3.16,158.16,158.13,19.48393327]
[1724497554893,0.0476902,158.17,158.13,19.48393327]
[1724497555095,3.2074902,158.17,158.14,3.1603]
[1724497555793,0.0476902,158.17,158.15,19.44]
[1724497557292,0.0476902,158.17,158.15,22.6001]
[1724497561700,0.0476902,158.17,158.16,3.1599]
[1724497569809,3.159,158.21,158.18,3.1595]
[1724497570914,3.20346491,158.21,158.18,3.20252327]
[1724497571205,3.20346491,158.21,158.19,3.1593]
[1724497571603,3.20346491,158.21,158.19,22.5993]
[1724497572107,3.20346491,158.21,158.19,19.44]
[1724497572612,3.20346491,158.21,158.2,7.76]
[1724497573307,3.20346491,158.21,158.18,10.96242327]
[1724497573510,0.04446491,158.21,158.18,0.04302327]
[1724497574017,3.1593,158.19,158.18,0.04302327]
[1724497592428,3.1593,158.19,158.09,85.33061591]
[1724497592429,19.42,158.19,158.09,85.33061591]
[1724497592746,20.6648,158.19,158.1,3.1609]
[1724497592918,20.6648,158.19,158.1,6.18899486]
[1724497593130,20.6648,158.19,158.1,3.1609]
[1724497593325,3.1603,158.14,158.13,0.04852145]
[1724497594624,0.04649573,158.16,158.13,0.04852145]
[1724497595530,0.04649573,158.16,158.13,19.46852145]
[1724497596634,0.04649573,158.16,158.14,3.1603]
[1724497596831,0.04649573,158.16,158.13,19.46852145]
[1724497597331,0.04649573,158.16,158.14,3.1603]
[1724497598436,0.04649573,158.16,158.15,7.77]
[1724497599143,0.04649573,158.16,158.13,0.04852145]
[1724497599345,3.1603,158.14,158.13,0.04852145]
[1724497602038,3.1603,158.14,158.1,3.1611]
[1724497602039,7.77,158.14,158.07,2.5736]
[1724497602234,7.77,158.14,158.08,4.29796599]
[1724497602434,1.2226,158.16,158.09,1.26448476]
[1724497602435,19.44,158.15,158.09,1.26448476]
[1724497602650,19.44,158.15,158.07,3.1617]
[1724497602834,1.2226,158.16,158.08,20.7045248]
[1724497603039,0.04205748,158.14,158.1,0.0407806]
[1724497603444,3.1609,158.11,158.1,0.0407806]
[1724497604238,0.04205748,158.14,158.1,0.0407806]
[1724497605436,3.1609,158.11,158.1,0.0407806]
[1724497606435,3.1617,158.07,158.0,3.8192]
[1724497606739,19.44,158.13,158.0,3.8192]
[1724497606740,19.44,158.11,158.02,19.44]
[1724497606938,22.60485096,158.11,158.03,4.30252487]
[1724497607133,3.162,158.06,158.04,1.26472474]
[1724497607335,22.60485096,158.11,158.05,1.26472474]
[1724497607536,0.04116953,158.07,158.02,22.6027]
[1724497607742,3.20296953,158.07,158.06,0.04400491]
[1724497608651,0.04116953,158.07,158.06,0.04400491]
[1724497609034,0.04116953,158.07,158.06,1.30866706]
[1724497609236,0.04116953,158.07,158.06,0.04400491]
[1724497610148,0.04116953,158.07,158.06,20.74865552]
[1724497610640,0.04116953,158.07,158.06,23.91055552]
[1724497610841,0.04116953,158.07,158.06,20.74865552]
[1724497611047,0.04116953,158.07,158.06,0.04400491]
[1724497617952,0.04116953,158.07,158.06,19.48400491]
[1724497618245,0.04116953,158.07,158.06,22.64590491]
[1724497618451,0.04116953,158.07,158.06,23.91046801]
[1724497619752,3.1609,158.11,158.06,20.74856801]
[1724497619937,3.1609,158.11,158.09,19.44]
[1724497621643,3.1609,158.11,158.08,3.20976532]
[1724497622550,3.1609,158.11,158.09,7.77]
[1724497627949,0.04449895,158.12,158.1,7.77]
[1724497629451,0.04449895,158.12,158.1,10.931]
[1724497630451,0.04449895,158.12,158.08,0.04846532]
[1724497630656,3.20519895,158.12,158.1,7.77]
[1724497632553,3.1609,158.11,158.1,7.77]
[1724497632754,3.1609,158.11,158.08,7.81846532]
[1724497634354,3.1609,158.11,158.08,10.97996532]
[1724497634555,3.1611,158.1,158.08,0.04846532]
[1724497634751,3.1611,158.1,158.08,7.81846532]
[1724497636065,0.04449895,158.12,158.08,7.81846532]
[1724497636653,3.1611,158.11,158.08,7.81846532]
[1724497637755,3.1613,158.09,158.08,0.04846532]
[1724497638360,3.1613,158.09,157.93,118.19204445]
[1724497638361,7.77,158.09,157.99,1.316]
[1724497638563,7.77,158.06,158.0,7.77]
[1724497639167,7.77,158.06,157.94,2.685]
[1724497639168,7.77,158.05,157.94,2.685]
[1724497639364,0.04420232,158.01,157.98,0.04405902]
[1724497639664,3.2070516,158.01,157.98,0.04076256]
[1724497640257,0.0441516,158.01,157.98,0.04076256]
[1724497641260,3.2070516,158.01,157.98,0.04076256]
[1724497641461,0.0441516,158.01,157.98,0.04076256]
[1724497641889,0.0441516,158.01,157.98,3.20416256]
[1724497642260,0.0441516,158.01,157.99,7.77]
[1724497643470,3.2070516,158.01,157.98,0.04076256]
[1724497643775,7.8141516,158.01,157.98,0.04076256]
[1724497644072,3.1632,158.0,157.98,0.04076256]
[1724497644374,0.0441516,158.01,157.98,0.04076256]
[1724497644986,3.2071516,158.01,157.98,0.04076256]
[1724497651372,3.1631,158.0,157.98,0.04076256]
[1724497651871,3.2071516,158.01,157.98,0.04076256]
[1724497653574,3.1632,158.0,157.98,0.04076256]
[1724497654582,3.1632,158.0,157.98,0.02076256]
[1724497654889,3.1633,157.99,157.98,0.02076256]
[1724497655770,3.1639,157.97,157.91,44.72]
[1724497656184,3.1639,157.97,157.93,3.1644]
[1724497656576,3.1639,157.97,157.91,44.72]
[1724497656780,0.04269136,157.96,157.92,0.04740168]
[1724497657076,0.04269136,157.96,157.93,3.1645]
[1724497657581,0.04269136,157.96,157.94,3.1643]
[1724497659276,0.04269136,157.96,157.93,3.1644]
[1724497660483,0.04269136,157.96,157.92,0.04740168]
[1724497661286,3.1644,157.94,157.92,0.04740168]
[1724497662184,3.1645,157.93,157.92,0.04740168]
[1724497663281,3.1643,157.94,157.92,0.04740168]
[1724497663788,0.04269136,157.96,157.92,0.04740168]
[1724497664080,3.1642,157.95,157.92,0.04740168]
[1724497666485,3.1644,157.94,157.92,0.04740168]
[1724497669083,3.1641,157.95,157.92,0.04740168]
[1724497671090,3.1643,157.94,157.92,0.04740168]
[1724497671292,7.78,157.95,157.92,0.04740168]
[1724497671887,3.1643,157.94,157.92,0.04740168]
[1724497675295,3.1645,157.93,157.92,0.04740168]
[1724497676089,3.1643,157.94,157.92,0.04740168]
[1724497679093,3.1645,157.93,157.92,0.04740168]
[1724497679394,7.78,157.94,157.92,0.04740168]
[1724497679591,3.1645,157.93,157.92,0.04740168]
[1724497683401,3.1645,157.93,157.85,2.529]
[1724497683402,7.78,157.93,157.84,7.78]
[1724497683599,7.78,157.91,157.84,7.78]
[1724497684299,0.04776959,157.89,157.86,3.2076961]
[1724497685292,3.21316959,157.89,157.86,0.0418961]
[1724497685496,0.04776959,157.89,157.86,0.0418961]
[1724497685701,0.04776959,157.89,157.86,3.2077961]
[1724497688095,0.04776959,157.89,157.87,3.1657]
[1724497688302,0.04776959,157.89,157.86,7.8218961]
[1724497688703,0.04776959,157.89,157.86,0.0418961]
[1724497688901,0.04776959,157.89,157.87,3.1656]
[1724497692897,0.04776959,157.89,157.86,3.2076961]
[1724497694805,0.04776959,157.89,157.87,3.1655]
[1724497695001,0.04776959,157.89,157.86,7.8218961]
[1724497696506,0.04776959,157.89,157.87,3.1657]
[1724497697803,0.04776959,157.89,157.86,7.8218961]
[1724497698409,0.04776959,157.89,157.88,3.1655]
[1724497699408,0.04776959,157.89,157.88,3.1455]
[1724497700302,7.78,157.95,157.9,3.165]
[1724497700998,3.1643,157.94,157.9,3.165]
[1724497701207,10.97945097,157.95,157.9,3.165]
[1724497701408,0.04490272,157.94,157.9,3.21189706]
[1724497703009,0.04490272,157.94,157.91,3.1649]
[1724497704220,0.04490272,157.94,157.92,7.78]
[1724497705010,0.04490272,157.94,157.92,10.9446]
[1724497706410,0.04490272,157.94,157.93,3.1645]
[1724497706909,0.04490272,157.94,157.93,10.9445]
[1724497710822,0.04490272,157.94,157.93,3.1645]
[1724497711127,0.04490272,157.94,157.92,3.1646]
[1724497712722,0.04490272,157.94,157.93,10.9445]
[1724497713926,10.9434,157.99,157.95,3.164]
[1724497714531,3.1632,158.0,157.96,3.1638]
[1724497714922,3.20660518,158.0,157.96,3.20720232]
[1724497720235,0.04340518,158.0,157.97,3.1637]
[1724497721533,3.1637,157.98,157.96,0.04340232]
[1724497721831,10.9437,157.98,157.96,0.04340232]
[1724497727841,3.1633,157.99,157.96,0.04340232]
[1724497728136,10.9433,157.99,157.96,0.04340232]
[1724497728337,7.78,157.99,157.96,3.20720232]
[1724497728930,0.04340518,158.0,157.96,3.20720232]
[1724497728931,0.04340518,158.0,157.97,3.1636]
[1724497730069,0.04340518,158.0,157.98,3.1635]
[1724497730348,0.04340518,158.0,157.96,0.04340232]
[1724497730744,0.04340518,158.0,157.97,3.1635]
[1724497731244,0.04340518,158.0,157.97,3.1636]
[1724497731643,0.04340518,158.0,157.96,0.04340232]
[1724497733950,0.04340518,158.0,157.98,3.1634]
[1724497738448,0.04340518,158.0,157.99,3.1633]
[1724497740654,0.04340518,158.0,157.96,0.04340232]
[1724497741349,0.04340518,158.0,157.97,3.1636]
[1724497741551,7.82340518,158.0,157.96,0.04340232]
[1724497741848,7.78,157.97,157.96,0.04340232]
[1724497743256,0.04340518,158.0,157.96,7.82340232]
[1724497743459,0.04340518,158.0,157.98,7.78]
[1724497743958,0.04340518,158.0,157.98,10.9434]
[1724497744352,0.04340518,158.0,157.99,3.1633]
[1724497744751,0.04340518,158.0,157.98,7.78]
[1724497745254,0.04340518,158.0,157.99,3.1633]
[1724497746250,0.04340518,158.0,157.98,10.9434]
[1724497751267,0.04340518,158.0,157.98,7.78]
[1724497759469,3.1633,157.99,157.96,2.56650232]
[1724497759675,0.04340518,158.0,157.96,0.04340232]
[1724497760063,3.1634,157.99,157.96,0.04340232]
[1724497766170,0.04340518,158.0,157.98,7.78]
[1724497767366,0.04340518,158.0,157.99,1.2654658]
[1724497767571,0.04340518,158.0,157.99,7.78]
[1724497767971,0.04340518,158.0,157.99,9.04543906]
[1724497770068,0.04340518,158.0,157.99,12.09327586]
[1724497770472,3.20650518,158.0,157.99,4.31327586]
[1724497770676,0.04340518,158.0,157.99,4.31327586]
[1724497770980,3.20650518,158.0,157.96,0.04340232]
[1724497771178,0.04340518,158.0,157.97,4.31433207]
[1724497771376,0.04340518,158.0,157.96,0.04340232]
[1724497771580,3.1635,157.99,157.97,4.31508824]
[1724497771778,3.1635,157.99,157.96,0.04340232]
[1724497772084,3.1635,157.99,157.97,1.26562393]
[1724497772282,3.1635,157.99,157.96,0.04340232]
[1724497772582,3.1635,157.99,157.97,1.26562831]
[1724497772779,3.1635,157.99,157.96,0.04340232]
[1724497772980,3.1635,157.99,157.97,1.26562825]
[1724497773181,3.1635,157.99,157.96,0.04340232]
[1724497773382,3.1635,157.99,157.97,1.26562825]
[1724497773582,3.1635,157.98,157.96,0.04340232]
[1724497773782,3.1635,157.98,157.97,1.26562809]
[1724497775214,3.1635,157.98,157.96,0.04340232]
[1724497775380,3.1635,157.98,157.97,1.26563505]
[1724497775782,0.04340518,158.0,157.96,0.04340232]
[1724497775783,3.1637,157.97,157.96,0.04340232]
[1724497776485,3.1643,157.94,157.9,7.78]
[1724497776687,3.1643,157.94,157.91,4.31848432]
[1724497776884,3.1643,157.94,157.92,4.31848432]
[1724497777086,3.1643,157.94,157.93,1.26595366]
[1724497777587,3.1643,157.94,157.9,7.78]
[1724497777588,3.1643,157.94,157.92,0.0465671]
[1724497778286,0.04246553,157.95,157.92,0.0465671]
[1724497778287,3.1645,157.93,157.92,0.0465671]
[1724497783788,0.04246553,157.95,157.92,0.0465671]
[1724497784788,0.04246553,157.95,157.92,7.8265671]
[1724497785294,3.20666553,157.95,157.92,7.8265671]
[1724497785685,0.04246553,157.95,157.92,7.8265671]
[1724497786182,0.04246553,157.95,157.94,7.78]
[1724497787691,0.04246553,157.95,157.94,12.09731129]
[1724497787952,0.04246553,157.95,157.94,7.78]
[1724497788288,0.04246553,157.95,157.94,13.99572389]
[1724497788486,0.04246553,157.95,157.94,15.26144904]
[1724497790195,0.04246553,157.95,157.94,12.09714904]
[1724497791228,0.04246553,157.95,157.94,9.04572515]
[1724497791497,0.04246553,157.95,157.94,12.09725329]
[1724497794510,0.04246553,157.95,157.94,7.78]
[1724497794701,0.04246553,157.95,157.94,15.26155504]
[1724497795798,0.04246553,157.95,157.94,12.09725504]
[1724497795997,0.04246553,157.95,157.94,7.78]
[1724497796394,0.04246553,157.95,157.94,9.04581526]
[1724497800715,0.04246553,157.95,157.94,7.78]
[1724497801306,0.04246553,157.95,157.92,3.2111671]
[1724497801500,0.04246553,157.95,157.93,1.26583587]
[1724497801805,0.04246553,157.95,157.92,10.9911671]
[1724497802008,0.04246553,157.95,157.93,1.26584353]
[1724497802205,0.04246553,157.95,157.92,7.8265671]
[1724497802610,3.1643,157.94,157.92,7.8265671]
[1724497803707,3.20666553,157.95,157.92,7.8265671]
[1724497804907,3.1643,157.94,157.92,7.8265671]
[1724497806318,3.1645,157.93,157.92,0.0465671]
[1724497807612,3.1644,157.94,157.92,7.8265671]
[1724497808609,0.04246553,157.95,157.92,7.8265671]
[1724497809511,3.20666553,157.95,157.92,7.8265671]
[1724497809718,0.04246553,157.95,157.93,7.78]
[1724497811818,0.04246553,157.95,157.93,10.9444]
[1724497813419,0.04246553,157.95,157.92,0.0465671]
[1724497814723,3.1644,157.94,157.92,0.0465671]
[1724497815418,3.20656553,157.95,157.92,0.0465671]
[1724497817415,0.04246553,157.95,157.92,0.0465671]
[1724497818220,3.1644,157.94,157.92,0.0465671]
[1724497819718,3.1645,157.93,157.92,0.0465671]
[1724497820422,0.04246553,157.95,157.92,0.0465671]
[1724497821425,3.1643,157.94,157.92,0.0465671]
[1724497824125,10.9445,157.93,157.92,0.0465671]
[1724497824826,10.89592067,157.93,157.86,7.78]
[1724497825124,10.89592067,157.93,157.87,1.26630705]
[1724497825324,7.78,157.92,157.83,3.1664]
[1724497825524,7.78,157.92,157.85,7.78]
[1724497825725,3.1654,157.89,157.87,0.04832452]
[1724497825927,3.22764418,157.9,157.87,0.04832452]
[1724497826226,3.1655,157.88,157.87,0.04832452]
[1724497833734,0.04307353,157.9,157.87,0.04832452]
[1724497834229,3.1653,157.89,157.87,0.04832452]
[1724497834426,3.13168303,157.9,157.87,0.04832452]
[1724497834626,0.04307353,157.9,157.88,7.78]
[1724497834826,3.20817353,157.9,157.88,7.78]
[1724497835026,0.04307353,157.9,157.88,7.78]
[1724497835428,3.20827353,157.9,157.88,7.78]
[1724497836032,0.04307353,157.9,157.88,7.78]
[1724497836535,3.20827353,157.9,157.88,7.78]
[1724497837236,3.20827353,157.9,157.87,0.04832452]
[1724497837237,0.04307353,157.9,157.89,7.78]
[1724497841234,0.04307353,157.9,157.87,0.04832452]
[1724497841531,0.04307353,157.9,157.87,7.82832452]
[1724497841738,3.1654,157.89,157.87,0.04832452]
[1724497842240,0.04307353,157.9,157.87,0.04832452]
[1724497842643,3.1655,157.88,157.87,7.82832452]
[1724497844733,3.1655,157.88,157.87,0.04832452]
[1724497846338,3.20827353,157.9,157.87,0.04832452]
[1724497846538,0.04307353,157.9,157.87,7.82832452]
[1724497847736,3.1655,157.88,157.87,7.82832452]
[1724497847938,3.1655,157.88,157.87,0.04832452]
[1724497872056,7.78,157.88,157.8,1.3293]
[1724497872357,7.78,157.88,157.66,6.3396]
[1724497872358,7.78,157.82,157.76,7.78]
[1724497872558,7.78,157.82,157.77,7.49761089]
[1724497872759,7.78,157.82,157.78,4.33011089]
[1724497872953,10.9468,157.82,157.79,1.26690135]
[1724497873255,10.9468,157.82,157.79,0.04489996]
[1724497873256,10.99445853,157.82,157.79,0.04489996]
[1724497873854,0.04765853,157.82,157.79,0.04489996]
[1724497874051,0.04765853,157.82,157.79,7.82489996]
[1724497874550,7.78,157.89,157.81,7.78]
[1724497874760,7.78,157.89,157.83,7.78]
[1724497874960,7.78,157.89,157.83,10.9464]
[1724497875358,1.2319,157.93,157.84,7.78]
[1724497875557,3.1653,157.89,157.87,0.04047403]
[1724497876857,3.1655,157.88,157.87,0.04047403]
[1724497878152,3.1654,157.89,157.87,0.04047403]
[1724497879259,3.1655,157.88,157.87,0.04047403]
[1724497880258,0.04050734,157.9,157.87,0.04047403]
[1724497881353,3.20560734,157.9,157.87,0.04047403]
[1724497884563,3.1653,157.89,157.87,0.04047403]
[1724497885764,3.1655,157.88,157.87,0.04047403]
[1724497891366,3.1654,157.89,157.87,0.04047403]
[1724497891970,0.04050734,157.9,157.87,0.04047403]
[1724497892675,3.20570734,157.9,157.87,0.04047403]
[1724497893272,3.20570734,157.9,157.87,7.82047403]
[1724497893968,3.1653,157.89,157.87,7.82047403]
[1724497894172,3.1653,157.89,157.87,0.04047403]
[1724497894769,3.20570734,157.9,157.87,0.04047403]
[1724497899272,0.04050734,157.9,157.87,10.98597403]
[1724497899470,0.04050734,157.9,157.88,7.78]
[1724497900479,7.78,157.96,157.89,3.06061043]
[1724497900681,3.1645,157.93,157.9,7.78]
[1724497901584,1.2444,157.99,157.91,1.26613216]
[1724497901885,1.2444,157.99,157.9,7.78]
[1724497901886,0.0404752,157.93,157.92,7.78]
[1724497902086,3.164,157.96,157.92,7.78]
[1724497902381,0.04233105,157.94,157.92,7.78]
[1724497903886,0.04233105,157.94,157.91,0.04338994]
[1724497904389,3.1647,157.92,157.91,0.04338994]
[1724497904894,10.9447,157.92,157.91,0.04338994]
[1724497906388,3.1659,157.87,157.85,59.38252027]
[1724497906590,7.78,157.87,157.85,59.38252027]
[1724497907491,3.1659,157.86,157.85,59.38252027]
[1724497907686,7.78,157.87,157.85,60.64910901]
[1724497907886,10.9458,157.87,157.85,59.38252027]
[1724497908083,7.78,157.87,157.84,0.0427735]
[1724497908283,7.78,157.87,157.85,1.26659529]
[1724497908483,3.1661,157.85,157.84,0.0427735]
[1724497908690,3.1661,157.85,157.84,4.37140577]
[1724497909194,3.1661,157.85,157.84,1.30936993]
[1724497909991,3.1661,157.85,157.84,1.30943426]
[1724497912093,3.1661,157.85,157.84,0.0427735]
[1724497912398,0.04392469,157.88,157.84,0.0427735]
[1724497912789,0.04392469,157.88,157.84,7.8227735]
[1724497913017,0.04392469,157.88,157.85,7.78]
[1724497913591,0.04392469,157.88,157.87,7.78]
[1724497913995,3.20942469,157.88,157.84,7.8227735]
[1724497914290,0.04392469,157.88,157.85,1.26660946]
[1724497914489,0.04392469,157.88,157.84,7.8227735]
[1724497914688,3.1658,157.87,157.85,1.26660963]
[1724497914894,3.1658,157.87,157.84,7.8227735]
[1724497915095,3.1658,157.87,157.85,1.26661818]
[1724497915299,3.1658,157.87,157.84,7.8227735]
[1724497915492,3.1658,157.87,157.85,1.26661818]
[1724497915690,3.1658,157.87,157.84,7.8227735]
[1724497915896,3.1658,157.87,157.85,1.26661147]
[1724497916093,3.1658,157.87,157.84,7.8227735]
[1724497916499,3.1658,157.87,157.85,1.26660461]
[1724497916806,3.1658,157.87,157.84,7.8227735]
[1724497917091,3.1658,157.87,157.85,1.26660461]
[1724497917291,3.1658,157.87,157.84,7.8227735]
[1724497917593,3.1658,157.87,157.85,1.26661371]
[1724497917800,3.1658,157.87,157.84,7.8227735]
[1724497918094,3.1658,157.87,157.85,1.26660701]
[1724497918292,3.20942469,157.88,157.84,0.0427735]
[1724497918494,3.20942469,157.88,157.85,9.04660461]
[1724497918695,3.20942469,157.88,157.85,7.78]
[1724497918895,0.04392469,157.88,157.87,7.78]
[1724497920298,0.04392469,157.88,157.85,7.78]
[1724497920493,0.04392469,157.88,157.84,0.0427735]
[1724497920698,0.04392469,157.88,157.85,1.26661399]
[1724497920893,3.1658,157.87,157.84,0.0427735]
[1724497921093,3.1658,157.87,157.85,1.26661191]
[1724497921295,0.04392469,157.88,157.84,0.0427735]
[1724497921794,0.04392469,157.88,157.85,1.26661206]
[1724497922093,3.1658,157.87,157.84,0.0427735]
[1724497922295,3.1658,157.87,157.85,1.26661206]
[1724497922499,3.1658,157.87,157.84,0.0427735]
[1724497923795,3.1659,157.86,157.84,0.0427735]
[1724497927400,3.1661,157.85,157.84,0.0427735]
[1724497929197,3.1666,157.83,157.78,7.78]
[1724497929399,3.1666,157.83,157.79,4.32968827]
[1724497929601,3.1666,157.83,157.8,4.32968827]
[1724497929800,3.1666,157.83,157.81,4.32968827]
[1724497929996,3.1666,157.83,157.82,1.26681877]
[1724497930200,3.1666,157.83,157.79,7.78]
[1724497930201,3.1666,157.83,157.81,0.04121921]